bitfinex-derivatives/quotes_BTCF0:USTF0_20260113
["timestamp","ask_amount","ask_price","bid_price","bid_amount"]
[1768317455451,0.0096258,92497.0,92472.0,0.00928708]
[1768317455751,0.0096258,92496.0,92483.0,0.010822]
[1768317455952,0.0096258,92495.0,92480.0,0.010822]
[1768317456246,0.0096258,92495.0,92472.0,0.010823]
[1768317456445,0.0096258,92495.0,92487.0,0.010822]
[1768317456856,0.0096258,92495.0,92476.0,0.010823]
[1768317457152,0.0096258,92495.0,92473.0,0.010823]
[1768317457537,8e-07,92495.0,92489.0,0.010821]
[1768317457742,0.09080471,92506.0,92476.0,0.0099734]
[1768317457952,0.3246,92542.0,92476.0,0.0099734]
[1768317457953,0.0974,92513.0,92501.0,0.01082]
[1768317458152,0.0974,92517.0,92501.0,0.01082]
[1768317458748,0.0974,92517.0,92490.0,0.0974]
[1768317458952,0.0974,92522.0,92492.0,0.0099734]
[1768317459149,0.0974,92522.0,92510.0,0.010819]
[1768317459350,0.0974,92522.0,92513.0,0.010818]
[1768317459557,0.0974,92525.0,92502.0,0.0099734]
[1768317459747,0.0974,92525.0,92495.0,0.010821]
[1768317459748,0.0096258,92525.0,92495.0,0.010821]
[1768317460051,0.10043051,92519.0,92496.0,0.0974]
[1768317460254,0.09080471,92515.0,92493.0,0.00540581]
[1768317460554,0.0096258,92512.0,92494.0,0.0974]
[1768317460757,0.09080471,92511.0,92494.0,0.108221]
[1768317460953,7.1e-07,92511.0,92494.0,0.0974]
[1768317461254,0.0974,92526.0,92495.0,0.10742215]
[1768317461551,0.010818,92522.0,92499.0,0.01082]
[1768317461747,0.010817,92525.0,92501.0,0.01082]
[1768317462059,0.1070258,92526.0,92496.0,0.0099734]
[1768317462260,0.1070258,92526.0,92499.0,0.0099734]
[1768317462442,0.1178428,92526.0,92504.0,0.010819]
[1768317462757,0.010817,92524.0,92501.0,0.01082]
[1768317462953,0.010818,92518.0,92494.0,0.0974]
[1768317463162,0.09080471,92517.0,92503.0,0.01082]
[1768317463361,0.0096258,92518.0,92505.0,0.010819]
[1768317463557,0.09080471,92524.0,92502.0,0.01082]
[1768317464052,0.09080471,92524.0,92495.0,0.0099734]
[1768317464259,0.09080471,92524.0,92505.0,0.010819]
[1768317464661,0.10162171,92524.0,92495.0,0.0099734]
[1768317465042,0.09080471,92524.0,92503.0,0.01082]
[1768317465357,0.09080471,92524.0,92499.0,0.01082]
[1768317465558,0.82284,92542.0,92499.0,0.01082]
[1768317465559,0.09080471,92532.0,92512.0,0.010819]
[1768317465949,0.09080471,92530.0,92507.0,0.1073334]
[1768317466151,0.010817,92529.0,92508.0,0.010819]
[1768317466548,0.10043051,92519.0,92502.0,0.01082]
[1768317466749,0.10043051,92519.0,92503.0,0.09736]
[1768317467245,0.09080471,92525.0,92504.0,0.01082]
[1768317467948,0.10162271,92522.0,92503.0,0.09736]
[1768317468149,0.09080471,92520.0,92503.0,0.10818]
[1768317468349,0.09080471,92520.0,92503.0,0.01082]
[1768317468757,0.010818,92516.0,92497.0,0.01082]
[1768317468961,0.010818,92519.0,92499.0,0.01082]
[1768317469262,0.010818,92519.0,92501.0,0.01082]
[1768317469463,0.010818,92517.0,92501.0,0.09736]
[1768317469660,0.09080471,92517.0,92501.0,0.10818]
[1768317469955,0.10043051,92517.0,92501.0,0.10818]
[1768317470164,0.10043051,92517.0,92501.0,0.09736]
[1768317470361,0.09736,92523.0,92501.0,0.09736]
[1768317471267,0.09736,92523.0,92505.0,0.010819]
[1768317471561,0.09736,92523.0,92501.0,0.097179]
[1768317472361,0.010818,92522.0,92502.0,0.01082]
[1768317473157,0.09736,92523.0,92504.0,0.01082]
[1768317473360,0.09736,92523.0,92500.0,0.09736]
[1768317473555,0.010819,92513.0,92493.0,0.00540581]
[1768317473756,0.010819,92513.0,92494.0,0.09736]
[1768317474151,0.010819,92513.0,92495.0,0.09736]
[1768317474352,0.09080471,92517.0,92495.0,0.09736]
[1768317474659,0.010819,92507.0,92493.0,0.00540581]
[1768317475063,0.09080471,92510.0,92493.0,0.00540581]
[1768317475262,0.09080471,92509.0,92493.0,0.00540581]
[1768317475760,0.010819,92506.0,92493.0,0.00540581]
[1768317475954,0.09080471,92509.0,92493.0,0.00540581]
[1768317476566,0.10043051,92507.0,92493.0,0.00540581]
[1768317477261,0.09736,92512.0,92477.0,0.0099734]
[1768317477262,0.09080471,92505.0,92477.0,0.0099734]
[1768317477453,0.10043051,92501.0,92483.0,0.010822]
[1768317477657,0.09080471,92499.0,92477.0,0.0099734]
[1768317477955,0.09080471,92497.0,92479.0,0.010822]
[1768317478157,0.09080471,92495.0,92477.0,0.09736]
[1768317478360,0.09080471,92501.0,92477.0,0.09736]
[1768317478565,0.01082,92500.0,92481.0,0.010822]
[1768317478765,0.09080471,92501.0,92481.0,0.010822]
[1768317479268,0.11125051,92501.0,92477.0,0.090182]
[1768317479464,0.10043051,92497.0,92478.0,0.010823]
[1768317479660,0.010821,92491.0,92474.0,0.09736]
[1768317479860,0.09080471,92495.0,92474.0,0.09736]
[1768317480363,0.09736,92500.0,92461.0,0.0099734]
[1768317480364,0.010822,92483.0,92461.0,0.0099734]
[1768317480563,0.10043051,92484.0,92463.0,0.09736]
[1768317480864,0.09080471,92490.0,92463.0,0.1073334]
[1768317481067,0.09080471,92490.0,92473.0,0.010823]
[1768317481260,0.20861151,92489.0,92468.0,0.010824]
[1768317481460,0.09080471,92488.0,92468.0,0.010824]
[1768317481963,0.09080471,92488.0,92464.0,0.0099734]
[1768317482665,0.09080471,92488.0,92474.0,0.010823]
[1768317483263,0.1069858,92489.0,92465.0,0.010824]
[1768317483264,0.10043051,92484.0,92465.0,0.010824]
[1768317483468,0.09080471,92482.0,92463.0,0.09736]
[1768317483769,0.09080471,92472.0,92450.0,0.0099734]
[1768317483965,0.010824,92464.0,92442.0,0.0099734]
[1768317484167,0.09080471,92466.0,92442.0,0.0099734]
[1768317484471,0.09080471,92464.0,92448.0,0.010826]
[1768317484765,0.09080471,92464.0,92452.0,0.010826]
[1768317485070,0.0096258,92465.0,92442.0,0.00986177]
[1768317485266,0.09855314,92470.0,92442.0,0.00986177]
[1768317485473,0.09855314,92470.0,92449.0,0.010826]
[1768317486073,0.09855314,92470.0,92454.0,0.010825]
[1768317486261,0.09855314,92476.0,92456.0,0.010825]
[1768317486460,1.59855314,92475.0,92456.0,0.010825]
[1768317486662,0.09855314,92474.0,92451.0,0.00986177]
[1768317486869,0.09855314,92474.0,92455.0,0.010825]
[1768317487071,0.10853026,92474.0,92455.0,0.006825]
[1768317487665,0.09855314,92470.0,92450.0,0.010826]
[1768317487860,0.09855314,92470.0,92444.0,0.00986177]
[1768317488074,0.09855314,92470.0,92452.0,0.010826]
[1768317488375,0.09855314,92470.0,92451.0,0.010826]
[1768317488766,0.010825,92460.0,92435.0,0.010828]
[1768317489075,0.10853026,92453.0,92433.0,0.00540932]
[1768317489872,0.0974,92458.0,92443.0,0.00986177]
[1768317490075,0.09855314,92476.0,92455.0,0.010825]
[1768317490371,0.09751478,92475.0,92449.0,0.00986177]
[1768317490572,0.00011478,92475.0,92449.0,0.00986177]
[1768317490766,0.00011478,92475.0,92453.0,0.00986177]
[1768317490967,0.00011478,92475.0,92461.0,0.010825]
[1768317491275,0.00997712,92470.0,92434.0,0.00986177]
[1768317491475,0.10853026,92459.0,92444.0,0.010827]
[1768317491771,0.19595314,92466.0,92440.0,0.00986177]
[1768317491975,0.10853026,92459.0,92424.0,0.010829]
[1768317492175,0.25476298,92450.0,92428.0,0.010828]
[1768317492476,0.09855314,92447.0,92427.0,0.010828]
[1768317492676,0.09855314,92447.0,92433.0,0.01623732]
[1768317493075,0.09855314,92447.0,92435.0,0.010828]
[1768317493274,0.0974,92452.0,92433.0,0.01527109]
[1768317493475,0.0974,92457.0,92436.0,0.010827]
[1768317493682,0.0974,92457.0,92447.0,0.010826]
[1768317493974,0.0974,92457.0,92433.0,0.01623732]
[1768317494180,0.0974,92464.0,92445.0,0.010826]
[1768317494382,0.0974,92464.0,92438.0,0.00986177]
[1768317494886,0.01008432,92458.0,92436.0,0.010827]
[1768317495067,0.00997712,92457.0,92433.0,0.01623732]
[1768317495269,0.00997712,92452.0,92433.0,0.00540932]
[1768317495466,0.00997712,92452.0,92436.0,0.010827]
[1768317495666,0.00997712,92452.0,92438.0,0.010827]
[1768317495880,0.14623272,92450.0,92442.0,0.010827]
[1768317496197,0.10715093,92457.0,92440.0,0.010827]
[1768317496393,0.10715093,92456.0,92437.0,0.010827]
[1768317496573,0.10715093,92454.0,92433.0,0.00540932]
[1768317497471,0.10715093,92454.0,92439.0,0.010827]
[1768317497666,0.10715093,92454.0,92433.0,0.00540932]
[1768317498074,0.10715093,92454.0,92442.0,0.010827]
[1768317498478,9.3e-07,92454.0,92434.0,0.010828]
[1768317498687,0.0001072,92458.0,92448.0,0.010826]
[1768317499081,0.0001072,92458.0,92438.0,0.00975853]
[1768317499381,0.14623272,92450.0,92435.0,0.010828]
[1768317499570,0.15705872,92450.0,92432.0,0.010828]
[1768317499772,0.14623272,92442.0,92421.0,0.0974]
[1768317499973,0.010827,92440.0,92421.0,0.0974]
[1768317500485,0.010827,92439.0,92419.0,0.010829]
[1768317500780,0.14623272,92430.0,92413.0,0.00541049]
[1768317500975,0.14623272,92423.0,92413.0,0.01624049]
[1768317501175,0.00011478,92422.0,92411.0,0.0974]
[1768317501377,0.00011478,92422.0,92413.0,0.01083]
[1768317501585,0.00011478,92422.0,92417.0,0.01083]
[1768317501882,7.8e-07,92422.0,92419.0,0.02058753]
[1768317502086,0.0974,92440.0,92429.0,0.010828]
[1768317502583,0.00863616,92439.0,92406.0,0.010831]
[1768317502792,0.00863616,92437.0,92419.0,0.010829]
[1768317503087,0.14623272,92430.0,92419.0,0.010829]
[1768317503289,0.00872641,92436.0,92419.0,0.010829]
[1768317503485,0.00872641,92436.0,92407.0,0.00975853]
[1768317503786,0.00872641,92436.0,92418.0,0.01083]
[1768317503975,0.00872641,92436.0,92407.0,0.00975853]
[1768317504170,0.00872641,92436.0,92419.0,0.01083]
[1768317504386,0.00872641,92436.0,92409.0,0.00975853]
[1768317504584,0.00872641,92436.0,92420.0,0.010829]
[1768317504981,0.00872641,92436.0,92417.0,0.01083]
[1768317505881,0.00872641,92436.0,92410.0,0.09744]
[1768317506078,0.00872641,92436.0,92410.0,0.10719853]
[1768317506585,0.010828,92432.0,92412.0,0.01083]
[1768317506781,0.0082514,92429.0,92408.0,0.09744]
[1768317506983,0.010829,92428.0,92409.0,0.010831]
[1768317507187,0.0082514,92429.0,92411.0,0.01083]
[1768317507487,9.025e-05,92436.0,92419.0,0.00975853]
[1768317507680,9.025e-05,92436.0,92423.0,0.010829]
[1768317507988,9.025e-05,92436.0,92422.0,0.010829]
[1768317508189,9.025e-05,92436.0,92419.0,0.00975853]
[1768317508387,0.14623272,92430.0,92411.0,0.01083]
[1768317508689,0.14623272,92430.0,92392.0,0.010833]
[1768317508690,0.01083,92418.0,92393.0,0.00975853]
[1768317508898,0.0975471,92417.0,92395.0,0.00975853]
[1768317509084,0.010832,92402.0,92385.0,0.00975853]
[1768317509275,0.01083,92414.0,92385.0,0.00975853]
[1768317509276,0.14623272,92400.0,92385.0,0.00975853]
[1768317509593,8.696e-05,92399.0,92377.0,0.00975853]
[1768317509782,8.696e-05,92399.0,92378.0,0.010834]
[1768317510085,8.696e-05,92399.0,92379.0,0.00975853]
[1768317510285,8.696e-05,92399.0,92381.0,0.010834]
[1768317510687,8.696e-05,92399.0,92382.0,0.010834]
[1768317510990,8.696e-05,92399.0,92386.0,0.010833]
[1768317511203,0.054131,92451.0,92394.0,0.010832]
[1768317511491,0.010831,92409.0,92388.0,0.010833]
[1768317511789,0.09744,92408.0,92389.0,0.010833]
[1768317511984,0.010831,92409.0,92389.0,0.010833]
[1768317512184,0.09744,92408.0,92389.0,0.010833]
[1768317512384,0.09744,92407.0,92391.0,0.010833]
[1768317512584,0.09744,92407.0,92387.0,0.010833]
[1768317512890,0.09744,92407.0,92384.0,0.09399369]
[1768317513079,0.09744,92407.0,92392.0,0.010833]
[1768317513279,0.09744,92407.0,92389.0,0.010833]
[1768317513586,0.010831,92406.0,92386.0,0.010833]
[1768317513887,0.09744,92407.0,92386.0,0.010833]
[1768317514084,0.09744,92407.0,92376.0,0.00989646]
[1768317514085,0.00760322,92406.0,92376.0,0.00989646]
[1768317514285,0.14623272,92400.0,92380.0,0.010834]
[1768317514485,0.01843422,92406.0,92385.0,0.010833]
[1768317514684,0.14623272,92400.0,92376.0,0.00989646]
[1768317514890,0.010831,92405.0,92376.0,0.00989646]
[1768317515092,0.00760322,92406.0,92378.0,0.00971506]
[1768317515292,0.010832,92401.0,92382.0,0.010834]
[1768317515892,0.010832,92399.0,92379.0,0.010834]
[1768317516393,0.00760322,92406.0,92378.0,0.00971506]
[1768317516394,0.14623272,92400.0,92378.0,0.00971506]
[1768317516579,0.15419098,92400.0,92376.0,0.00013793]
[1768317516890,0.15706572,92390.0,92376.0,0.00013793]
[1768317517277,0.010833,92388.0,92376.0,0.00013793]
[1768317517476,0.010833,92389.0,92376.0,0.00013793]
[1768317517986,0.14623272,92390.0,92376.0,0.00013793]
[1768317518583,0.108273,92391.0,92376.0,0.00013793]
[1768317518783,0.14623272,92390.0,92376.0,0.00013793]
[1768317518981,0.14623272,92390.0,92373.0,0.00255077]
[1768317519184,0.15706572,92390.0,92373.0,0.00255077]
[1768317519486,0.108273,92391.0,92373.0,0.00255077]
[1768317519790,0.14623272,92390.0,92373.0,0.00255077]
[1768317519993,0.14623272,92390.0,92353.0,0.00241401]
[1768317519994,0.14623272,92383.0,92353.0,0.00241401]
[1768317520195,0.010833,92386.0,92353.0,0.00241401]
[1768317520196,0.010835,92369.0,92353.0,0.00241401]
[1768317520394,0.00011277,92368.0,92353.0,1e-08]
[1768317520590,0.14623272,92363.0,92339.0,0.00971506]
[1768317520896,0.00011277,92368.0,92333.0,0.01513024]
[1768317521098,0.14623272,92360.0,92334.0,0.09748]
[1768317521393,0.00011277,92368.0,92333.0,0.01513024]
[1768317521394,0.010838,92348.0,92333.0,0.01513024]
[1768317521596,0.09748,92369.0,92315.0,0.00971506]
[1768317521597,0.14623272,92343.0,92315.0,0.00971506]
[1768317521781,0.010841,92322.0,92313.0,0.00541636]
[1768317522099,0.010841,92322.0,92307.0,0.00971506]
[1768317522100,0.14623272,92330.0,92307.0,0.00971506]
[1768317522285,0.14623272,92320.0,92253.0,0.00541988]
[1768317522480,0.14623272,92310.0,92284.0,0.10681722]
[1768317522685,0.00012217,92309.0,92284.0,0.10681722]
[1768317522896,0.01096517,92309.0,92281.0,0.01183955]
[1768317523096,0.01096517,92309.0,92283.0,0.010845]
[1768317523302,0.010843,92303.0,92281.0,0.09748]
[1768317523490,0.14623272,92300.0,92280.0,0.09748]
[1768317523684,0.00718691,92309.0,92293.0,0.010844]
[1768317523884,0.00718691,92309.0,92280.0,0.09748]
[1768317524093,0.14623272,92300.0,92285.0,0.060845]
[1768317524399,0.14623272,92300.0,92285.0,0.05]
[1768317525094,0.09748,92308.0,92285.0,0.05]
[1768317525997,0.09748,92308.0,92285.0,0.060845]
[1768317526390,0.09748,92308.0,92285.0,0.0343]
[1768317526587,0.14623272,92300.0,92285.0,0.0193]
[1768317526788,0.010844,92299.0,92276.0,0.00971506]
[1768317526992,0.14623272,92300.0,92276.0,0.00971506]
[1768317527602,0.14623272,92300.0,92265.0,0.01323245]
[1768317527603,0.00946242,92280.0,92265.0,4.5e-07]
[1768317527794,0.010847,92267.0,92265.0,4.5e-07]
[1768317528100,0.00946242,92267.0,92250.0,7.609e-05]
[1768317528296,0.14623272,92263.0,92229.0,0.010852]
[1768317528491,8.022e-05,92266.0,92235.0,0.09835744]
[1768317529008,8.022e-05,92266.0,92237.0,0.010851]
[1768317529299,0.010848,92265.0,92235.0,0.09835744]
[1768317529486,8.022e-05,92266.0,92235.0,0.09835744]
[1768317529487,0.14623272,92250.0,92235.0,0.00238522]
[1768317529687,9.89e-05,92249.0,92235.0,0.00238522]
[1768317531005,0.09752,92252.0,92237.0,0.00971506]
[1768317531195,0.010842,92317.0,92243.0,0.09597222]
[1768317531196,0.010846,92279.0,92243.0,0.09597222]
[1768317531396,0.010846,92279.0,92235.0,0.09756]
[1768317531397,0.09756,92279.0,92245.0,0.09597222]
[1768317531703,0.09756,92279.0,92247.0,0.09597222]
[1768317531892,0.15621767,92270.0,92246.0,0.01085]
[1768317532096,0.0001308,92269.0,92250.0,0.010849]
[1768317532294,0.9864,92300.0,92243.0,0.09756]
[1768317532295,0.15621767,92290.0,92245.0,0.09597222]
[1768317532503,0.14623272,92280.0,92255.0,0.09597222]
[1768317532703,0.14623272,92280.0,92247.0,0.09597222]
[1768317532898,0.14623272,92280.0,92253.0,0.010849]
[1768317533102,0.010846,92282.0,92257.0,0.00971506]
[1768317533404,0.14623272,92280.0,92257.0,0.00971506]
[1768317533599,0.010846,92278.0,92257.0,0.00971506]
[1768317533800,0.15023272,92280.0,92257.0,0.00971506]
[1768317533995,0.004,92280.0,92257.0,0.00971506]
[1768317534195,0.004,92280.0,92257.0,0.09597222]
[1768317534394,0.004,92280.0,92257.0,0.09982122]
[1768317534891,0.004,92280.0,92255.0,0.09756]
[1768317535508,0.00998495,92302.0,92268.0,0.010847]
[1768317535699,0.010844,92297.0,92269.0,0.09756]
[1768317536000,0.14623272,92290.0,92248.0,0.12270217]
[1768317536200,0.004,92280.0,92258.0,0.00971506]
[1768317536396,0.004,92280.0,92261.0,0.00971506]
[1768317536603,0.004,92280.0,92268.0,0.09597222]
[1768317536904,0.010845,92289.0,92264.0,0.00971506]
[1768317537096,0.14623272,92290.0,92269.0,0.046]
[1768317537298,0.14623272,92280.0,92269.0,0.03850987]
[1768317537601,0.010846,92277.0,92249.0,0.00971506]
[1768317537903,0.010846,92277.0,92268.0,0.04193539]
[1768317538099,0.14623272,92278.0,92268.0,3.9e-07]
[1768317538299,0.004,92280.0,92268.0,0.00971545]
[1768317539601,0.010845,92289.0,92270.0,0.00971506]
[1768317539906,0.0976,92290.0,92270.0,0.00971506]
[1768317540307,0.005,92280.0,92270.0,0.00971506]
[1768317540702,0.005,92280.0,92268.0,0.013]
[1768317540703,0.00086588,92310.0,92273.0,0.09597222]
[1768317540904,0.108443,92304.0,92278.0,0.00971506]
[1768317541106,0.010843,92303.0,92279.0,0.00971506]
[1768317541503,0.00086588,92299.0,92270.0,0.02071506]
[1768317541805,0.14623272,92290.0,92270.0,0.02071506]
[1768317542008,0.00086588,92309.0,92274.0,0.00971506]
[1768317542198,0.010845,92287.0,92270.0,0.011]
[1768317542394,0.010845,92285.0,92270.0,0.011]
[1768317542699,0.010846,92282.0,92273.0,0.004]
[1768317543099,0.2446986,92290.0,92273.0,0.004]
[1768317543411,0.00320959,92284.0,92270.0,0.01179041]
[1768317543708,0.004,92287.0,92270.0,0.01179041]
[1768317544006,0.00844842,92305.0,92275.0,0.010846]
[1768317544207,0.004,92290.0,92276.0,0.00971506]
[1768317544695,0.108443,92304.0,92281.0,0.010846]
[1768317544896,0.0976,92304.0,92283.0,0.00988344]
[1768317545106,0.00216838,92309.0,92288.0,0.00988344]
[1768317545107,0.0976,92309.0,92288.0,0.00988344]
[1768317545408,0.0976,92317.0,92296.0,0.00988344]
[1768317545603,0.0976,92322.0,92300.0,0.00988344]
[1768317545795,0.0956,92322.0,92304.0,0.00988344]
[1768317545999,0.0023829,92325.0,92304.0,0.00988344]
[1768317546204,0.0023829,92325.0,92308.0,0.00988344]
[1768317546405,0.0023829,92325.0,92287.0,0.010845]
[1768317546406,0.00953652,92329.0,92303.0,0.0976]
[1768317546605,0.004,92317.0,92302.0,0.010843]
[1768317546807,0.00953652,92337.0,92310.0,0.00988344]
[1768317547113,0.108439,92336.0,92311.0,0.00988344]
[1768317547299,0.006,92325.0,92311.0,0.02072544]
[1768317547507,0.006,92325.0,92308.0,0.004]
[1768317548414,0.010835,92375.0,92308.0,0.004]
[1768317548415,0.0976,92357.0,92322.0,0.010841]
[1768317548596,0.0976,92357.0,92328.0,0.00988344]
[1768317548801,0.010837,92352.0,92329.0,0.01084]
[1768317548998,0.010837,92356.0,92332.0,0.01084]
[1768317549314,0.0976,92357.0,92331.0,0.00988344]
[1768317549608,0.0976,92357.0,92335.0,0.00988344]
[1768317549815,0.010837,92356.0,92334.0,0.10188076]
[1768317550016,0.010837,92356.0,92334.0,0.09104176]
[1768317550511,0.1036,92357.0,92334.0,0.09104176]
[1768317550512,0.010837,92352.0,92334.0,0.09104176]
[1768317550714,0.0976,92357.0,92331.0,0.003]
[1768317550715,0.010839,92340.0,92331.0,0.003]
[1768317550920,0.010839,92340.0,92300.0,0.24201505]
[1768317550921,0.004,92357.0,92313.0,0.05935269]
[1768317551220,0.004,92357.0,92300.0,0.08493933]
[1768317551221,0.004,92357.0,92340.0,0.010839]
[1768317551406,0.004,92357.0,92332.0,0.01084]
[1768317551813,0.004,92357.0,92327.0,0.0976]
[1768317552013,0.007,92356.0,92338.0,0.00988344]
[1768317552210,0.00953652,92386.0,92359.0,0.00988344]
[1768317552419,0.09756,92385.0,92358.0,0.09215832]
[1768317552614,0.00953652,92362.0,92335.0,0.23223576]
[1768317552825,0.04626913,92369.0,92335.0,0.23223576]
[1768317552826,0.006,92357.0,92336.0,0.09215832]
[1768317553117,0.09756,92357.0,92336.0,0.09215832]
[1768317553320,0.010836,92365.0,92336.0,0.09215832]
[1768317553511,0.010836,92363.0,92336.0,0.09215832]
[1768317553813,0.09756,92364.0,92335.0,0.108288]
[1768317553814,0.00953652,92361.0,92335.0,0.108288]
[1768317554019,0.010837,92354.0,92335.0,0.108288]
[1768317554620,0.00953652,92358.0,92335.0,0.108288]
[1768317555120,0.010838,92349.0,92336.0,0.021]
[1768317555320,0.09756,92348.0,92336.0,0.021]
[1768317555822,0.00994024,92346.0,92316.0,0.00953421]
[1768317556118,0.108288,92347.0,92276.0,0.010846]
[1768317556119,0.00994024,92338.0,92308.0,0.00953421]
[1768317556424,0.10750024,92337.0,92313.0,0.010842]
[1768317556811,0.108288,92336.0,92313.0,0.010842]
[1768317557316,0.108288,92335.0,92313.0,0.010842]
[1768317557617,0.09756,92334.0,92316.0,0.02037621]
[1768317557919,0.09756,92334.0,92316.0,0.00953421]
[1768317558113,0.108288,92333.0,92316.0,0.00953421]
[1768317558422,0.09756,92335.0,92316.0,0.00953421]
[1768317558811,0.108288,92334.0,92316.0,0.00953421]
[1768317559012,0.09756,92335.0,92316.0,0.00953421]
[1768317559218,0.108288,92334.0,92316.0,0.00953421]
[1768317559619,0.108288,92333.0,92316.0,0.00953421]
[1768317559817,0.108288,92336.0,92316.0,0.00953421]
[1768317560021,0.005,92334.0,92316.0,0.01253421]
[1768317560420,0.01084,92330.0,92316.0,0.003]
[1768317560628,0.01084,92329.0,92316.0,0.003]
[1768317560916,0.02078024,92330.0,92316.0,0.003]
[1768317561121,0.02078024,92330.0,92298.0,0.00953421]
[1768317561122,0.010842,92313.0,92294.0,0.09756]
[1768317561311,0.00994024,92322.0,92294.0,0.09756]
[1768317561312,0.010842,92310.0,92294.0,0.09756]
[1768317561508,0.010842,92312.0,92294.0,0.09756]
[1768317561916,0.108288,92311.0,92294.0,0.09756]
[1768317562224,0.005,92313.0,92294.0,0.10056]
[1768317562520,0.005,92313.0,92294.0,0.003]
[1768317562822,0.108288,92312.0,92294.0,0.003]
[1768317563018,0.027,92311.0,92293.0,0.00541753]
[1768317563226,0.135288,92311.0,92294.0,0.010844]
[1768317563426,0.108288,92310.0,92293.0,0.00541753]
[1768317563930,0.027,92311.0,92294.0,0.010844]
[1768317563931,0.108288,92309.0,92294.0,0.010844]
[1768317564126,0.108288,92310.0,92294.0,0.010844]
[1768317564618,0.108288,92309.0,92294.0,0.010844]
[1768317564822,0.108288,92310.0,92294.0,0.010844]
[1768317565327,0.108288,92309.0,92287.0,0.19034707]
[1768317565516,0.11822824,92312.0,92291.0,0.010845]
[1768317565721,0.11822824,92312.0,92280.0,0.19208454]
[1768317565722,0.00994024,92309.0,92280.0,0.19208454]
[1768317565925,0.00994024,92307.0,92280.0,0.19208454]
[1768317566527,0.00994024,92305.0,92280.0,0.09756]
[1768317566911,0.09756,92308.0,92267.0,0.00013882]
[1768317566912,0.010845,92288.0,92267.0,0.00013882]
[1768317567117,0.010845,92287.0,92267.0,0.00013882]
[1768317567317,0.119133,92287.0,92267.0,0.00013882]
[1768317567527,0.108288,92286.0,92267.0,0.00013882]
[1768317567827,0.010845,92285.0,92267.0,0.00013882]
[1768317568015,0.00994024,92284.0,92273.0,0.00303503]
[1768317568220,0.00994024,92282.0,92273.0,0.00303503]
[1768317568734,0.09756,92288.0,92267.0,0.00013882]
[1768317568735,0.010847,92269.0,92267.0,8.2e-07]
[1768317569023,0.00994024,92270.0,92249.0,0.010849]
[1768317569329,0.09756,92271.0,92252.0,0.010849]
[1768317569623,0.108288,92270.0,92252.0,0.010849]
[1768317569828,8.814e-05,92269.0,92252.0,0.010849]
[1768317570124,0.10837614,92269.0,92254.0,0.010849]
[1768317570324,0.10837614,92269.0,92239.0,0.00953421]
[1768317570325,0.205848,92268.0,92257.0,0.010848]
[1768317570723,0.108288,92267.0,92257.0,0.010848]
[1768317571113,0.09756,92268.0,92261.0,0.010848]
[1768317571423,0.09756,92268.0,92257.0,0.010848]
[1768317571613,8.814e-05,92269.0,92257.0,0.010848]
[1768317572017,0.00994024,92279.0,92257.0,0.010848]
[1768317572222,0.010845,92287.0,92262.0,0.09452454]
[1768317572425,0.00994024,92290.0,92253.0,0.00541988]
[1768317572426,0.010845,92285.0,92264.0,0.10405875]
[1768317572818,0.006,92269.0,92255.0,0.00953421]
[1768317573133,0.006,92269.0,92258.0,0.010848]
[1768317573430,0.006,92269.0,92257.0,0.010849]
[1768317573625,0.006,92269.0,92253.0,0.00541988]
[1768317573827,0.006,92269.0,92259.0,0.010848]
[1768317574029,0.00994024,92282.0,92259.0,0.005848]
[1768317574223,0.00994024,92282.0,92255.0,0.09452454]
[1768317574622,0.02078624,92279.0,92254.0,0.02038321]
[1768317574932,0.00900878,92274.0,92253.0,0.00541988]
[1768317575333,0.00900878,92273.0,92253.0,0.00541988]
[1768317575723,0.006,92282.0,92256.0,0.010849]
[1768317575724,0.00900878,92281.0,92256.0,0.010849]
[1768317575927,0.006,92279.0,92256.0,0.010849]
[1768317576236,0.01500878,92279.0,92259.0,0.010848]
[1768317576425,0.01500878,92279.0,92256.0,0.010849]
[1768317576628,0.00900878,92276.0,92253.0,0.00541988]
[1768317576827,0.10660878,92276.0,92253.0,0.00541988]
[1768317577027,0.10660878,92276.0,92257.0,0.010848]
[1768317577228,0.10660878,92276.0,92253.0,0.00541988]
[1768317577229,0.0976,92276.0,92253.0,0.00541988]
[1768317577427,0.005,92273.0,92254.0,0.010849]
[1768317577633,0.00900878,92272.0,92254.0,0.010849]
[1768317577839,0.005,92273.0,92256.0,0.010849]
[1768317578132,0.0976,92276.0,92253.0,0.00541988]
[1768317578336,0.0976,92275.0,92265.0,0.010848]
[1768317578529,0.007,92276.0,92265.0,0.010848]
[1768317578743,0.007,92276.0,92261.0,0.010848]
[1768317579038,0.0976,92278.0,92264.0,0.010848]
[1768317579234,0.007,92273.0,92264.0,0.010848]
[1768317579734,5.068e-05,92284.0,92256.0,0.10022453]
[1768317579937,5.068e-05,92284.0,92269.0,0.010847]
[1768317580633,5.068e-05,92284.0,92263.0,0.09722453]
[1768317580833,5.068e-05,92284.0,92276.0,0.010846]
[1768317581039,0.00900878,92297.0,92276.0,0.010846]
[1768317581040,0.0976,92293.0,92276.0,0.010846]
[1768317581244,0.0976,92293.0,92278.0,0.010846]
[1768317581430,0.00900878,92297.0,92274.0,0.09722453]
[1768317581732,0.0976,92301.0,92274.0,0.1064703]
[1768317581932,0.09218482,92301.0,92278.0,0.1064703]
[1768317582134,0.09612007,92307.0,92280.0,0.010846]
[1768317582440,0.008,92293.0,92276.0,0.004]
[1768317582636,0.00900878,92316.0,92289.0,0.1173153]
[1768317582840,0.00900878,92316.0,92292.0,0.1064703]
[1768317583032,0.0976,92321.0,92304.0,0.010843]
[1768317583232,0.09612007,92328.0,92299.0,0.00924577]
[1768317583430,0.05870248,92352.0,92310.0,0.010842]
[1768317583431,0.09612007,92336.0,92310.0,0.010842]
[1768317583633,0.09612007,92336.0,92310.0,0.09722453]
[1768317583634,0.0976,92336.0,92310.0,0.09722453]
[1768317583836,0.0976,92336.0,92311.0,0.00924577]
[1768317584037,0.010838,92344.0,92321.0,0.00924577]
[1768317584334,0.010838,92344.0,92317.0,0.010841]
[1768317584535,0.010839,92338.0,92315.0,0.0976]
[1768317584839,0.003,92336.0,92315.0,0.0976]
[1768317585239,0.010839,92338.0,92315.0,0.0976]